[Event "Titled Tuesday Blitz July 6 2021"]
[White "Ibrahimli, Murad"]
[Black "Arabidze, Meri"]
[WhiteFideId "13410229"]
[BlackFideId "13604040"]
[WhiteElo "2109"]
[BlackElo "2432"]
[Result "1-0"]
[Round "10"]
[TimeControl "180+1"]
[Date "2021.07.06"]
[WhiteClock "0:00:15"]
[BlackClock "0:00:00"]

1. d4 {[%clk 0:03:00]}  d5 {[%clk 0:02:59]} 2. c4 {[%clk 0:03:01]}  e6 {[%clk 0:03:00]} 3. Nf3 {[%clk 0:03:00]}  Nf6 {[%clk 0:03:00]} 4. Nc3 {[%clk 0:03:00]}  Nbd7 {[%clk 0:03:00]} 5. cxd5 {[%clk 0:03:00]}  exd5 {[%clk 0:03:00]} 6. Bf4 {[%clk 0:03:00]}  c6 {[%clk 0:02:59]} 7. h3 {[%clk 0:03:00]}  Be7 {[%clk 0:02:56]} 8. e3 {[%clk 0:03:00]}  Nf8 {[%clk 0:02:56]} 9. Bd3 {[%clk 0:03:00]}  Ng6 {[%clk 0:02:56]} 10. Bh2 {[%clk 0:03:00]}  Bd6 {[%clk 0:02:55]} 11. Bxd6 {[%clk 0:02:55]}  Qxd6 {[%clk 0:02:56]} 12. Qc2 {[%clk 0:02:55]}  O-O {[%clk 0:02:55]} 13. O-O {[%clk 0:02:54]}  Re8 {[%clk 0:02:52]} 14. Rab1 {[%clk 0:02:53]}  Bd7 {[%clk 0:02:39]} 15. b4 {[%clk 0:02:52]}  b5 {[%clk 0:02:38]} 16. a4 {[%clk 0:02:48]}  a6 {[%clk 0:02:38]} 17. a5 {[%clk 0:02:48]}  Re7 {[%clk 0:02:30]} 18. Rfe1 {[%clk 0:02:39]}  Rae8 {[%clk 0:02:29]} 19. Ne2 {[%clk 0:02:28]}  Ne4 {[%clk 0:02:23]} 20. Bxe4 {[%clk 0:02:28]}  dxe4 {[%clk 0:02:22]} 21. Nh2 {[%clk 0:02:27]}  Qf6 {[%clk 0:02:03]} 22. Qc5 {[%clk 0:02:23]}  Nh4 {[%clk 0:01:30]} 23. Ng3 {[%clk 0:02:21]}  Qg6 {[%clk 0:01:23]} 24. Qh5 {[%clk 0:02:12]}  Qxh5 {[%clk 0:01:15]} 25. Nxh5 {[%clk 0:02:13]}  f5 {[%clk 0:01:15]} 26. Rbc1 {[%clk 0:02:07]}  Kf7 {[%clk 0:01:05]} 27. g3 {[%clk 0:02:04]}  Ng6 {[%clk 0:00:55]} 28. h4 {[%clk 0:02:04]}  h6 {[%clk 0:00:52]} 29. Nf1 {[%clk 0:02:00]}  Nf8 {[%clk 0:00:51]} 30. Nd2 {[%clk 0:01:32]}  g5 {[%clk 0:00:49]} 31. hxg5 {[%clk 0:01:31]}  hxg5 {[%clk 0:00:50]} 32. g4 {[%clk 0:01:31]}  Kg6 {[%clk 0:00:38]} 33. Ng3 {[%clk 0:01:26]}  fxg4 {[%clk 0:00:28]} 34. Rc5 {[%clk 0:01:22]}  Ne6 {[%clk 0:00:26]} 35. Re5 {[%clk 0:01:21]}  Nc7 {[%clk 0:00:26]} 36. Rxe7 {[%clk 0:01:16]}  Rxe7 {[%clk 0:00:27]} 37. Ndxe4 {[%clk 0:01:15]}  Nd5 {[%clk 0:00:26]} 38. Rb1 {[%clk 0:01:16]}  Bf5 {[%clk 0:00:21]} 39. Nxf5 {[%clk 0:01:15]}  Rxe4 {[%clk 0:00:17]} 40. Ng3 {[%clk 0:01:15]}  Re8 {[%clk 0:00:16]} 41. Kg2 {[%clk 0:01:15]}  Rf8 {[%clk 0:00:14]} 42. Rb3 {[%clk 0:01:13]}  Rf3 {[%clk 0:00:14]} 43. Ne4 {[%clk 0:01:06]}  Nf4+ {[%clk 0:00:12]} 44. Kf1 {[%clk 0:01:07]}  Nd5 {[%clk 0:00:08]} 45. Ke1 {[%clk 0:00:57]}  Rh3 {[%clk 0:00:05]} 46. Nc5 {[%clk 0:00:51]}  g3 {[%clk 0:00:06]} 47. fxg3 {[%clk 0:00:51]}  Rxg3 {[%clk 0:00:06]} 48. Kf2 {[%clk 0:00:51]}  Rh3 {[%clk 0:00:05]} 49. Nxa6 {[%clk 0:00:47]}  g4 {[%clk 0:00:06]} 50. Nc5 {[%clk 0:00:44]}  Kg5 {[%clk 0:00:06]} 51. a6 {[%clk 0:00:33]}  g3+ {[%clk 0:00:06]} 52. Kg1 {[%clk 0:00:32]}  Kg4 {[%clk 0:00:07]} 53. a7 {[%clk 0:00:26]}  Rh8 {[%clk 0:00:07]} 54. Ra3 {[%clk 0:00:26]}  Nb6 {[%clk 0:00:06]} 55. Nd7 {[%clk 0:00:24]}  Na8 {[%clk 0:00:02]} 56. Ne5+ {[%clk 0:00:23]}  Kf5 {[%clk 0:00:02]} 57. Kg2 {[%clk 0:00:18]}  Rg8 {[%clk 0:00:02]} 58. Nxc6 {[%clk 0:00:18]}  Ke4 {[%clk 0:00:02]} 59. d5 {[%clk 0:00:17]}  Nb6 {[%clk 0:00:01]} 60. d6 {[%clk 0:00:17]}  Rf8 {[%clk 0:00:00]} 61. Kxg3 {[%clk 0:00:15]} 1-0


[Site "https://www.chess.com"]

[Event "Titled Tuesday Blitz July 6 2021"]
[White "Janaszak, Dawid"]
[Black "Riazantsev, Alexander"]
[WhiteFideId "1119206"]
[BlackFideId "4125029"]
[WhiteElo "2332"]
[BlackElo "2497"]
[Result "0-1"]
[Round "10"]
[TimeControl "180+1"]
[Date "2021.07.06"]
[WhiteClock "0:00:02"]
[BlackClock "0:00:17"]

1. e4 {[%clk 0:03:00]}  c6 {[%clk 0:02:59]} 2. d4 {[%clk 0:03:01]}  d5 {[%clk 0:03:00]} 3. exd5 {[%clk 0:03:01]}  cxd5 {[%clk 0:03:00]} 4. Bd3 {[%clk 0:03:02]}  Nc6 {[%clk 0:03:00]} 5. c3 {[%clk 0:03:02]}  Nf6 {[%clk 0:02:59]} 6. Bf4 {[%clk 0:03:03]}  Bg4 {[%clk 0:02:58]} 7. Qb3 {[%clk 0:03:02]}  Qd7 {[%clk 0:02:58]} 8. Nd2 {[%clk 0:03:00]}  e6 {[%clk 0:02:58]} 9. Ngf3 {[%clk 0:03:00]}  Bxf3 {[%clk 0:02:58]} 10. Nxf3 {[%clk 0:03:00]}  Bd6 {[%clk 0:02:59]} 11. Bxd6 {[%clk 0:03:00]}  Qxd6 {[%clk 0:02:59]} 12. O-O {[%clk 0:03:01]}  O-O {[%clk 0:02:58]} 13. Rae1 {[%clk 0:03:01]}  Qc7 {[%clk 0:02:58]} 14. Ne5 {[%clk 0:02:52]}  Nxe5 {[%clk 0:02:58]} 15. dxe5 {[%clk 0:02:40]}  Nd7 {[%clk 0:02:57]} 16. Qd1 {[%clk 0:02:39]}  g6 {[%clk 0:02:46]} 17. f4 {[%clk 0:02:38]}  b5 {[%clk 0:02:47]} 18. Kh1 {[%clk 0:02:32]}  Rab8 {[%clk 0:02:46]} 19. Qe2 {[%clk 0:02:13]}  b4 {[%clk 0:02:45]} 20. c4 {[%clk 0:01:56]}  Nb6 {[%clk 0:02:44]} 21. Rc1 {[%clk 0:01:52]}  dxc4 {[%clk 0:02:45]} 22. Bxc4 {[%clk 0:01:52]}  Qe7 {[%clk 0:02:44]} 23. Ba6 {[%clk 0:01:40]}  Rfd8 {[%clk 0:02:42]} 24. h3 {[%clk 0:01:28]}  h5 {[%clk 0:02:38]} 25. Rc6 {[%clk 0:01:21]}  Kg7 {[%clk 0:02:32]} 26. Rfc1 {[%clk 0:01:13]}  Nd5 {[%clk 0:02:30]} 27. Qf3 {[%clk 0:01:07]}  Rb6 {[%clk 0:02:19]} 28. Rxb6 {[%clk 0:00:49]}  axb6 {[%clk 0:02:20]} 29. Rd1 {[%clk 0:00:35]}  Qc7 {[%clk 0:02:03]} 30. Qf2 {[%clk 0:00:22]}  Ra8 {[%clk 0:01:41]} 31. Bd3 {[%clk 0:00:21]}  Rxa2 {[%clk 0:01:39]} 32. f5 {[%clk 0:00:21]}  exf5 {[%clk 0:01:22]} 33. Bxf5 {[%clk 0:00:21]}  Qxe5 {[%clk 0:01:22]} 34. Bd3 {[%clk 0:00:10]}  Rxb2 {[%clk 0:01:21]} 35. Qf3 {[%clk 0:00:11]}  Nf4 {[%clk 0:01:15]} 36. Rf1 {[%clk 0:00:11]}  g5 {[%clk 0:01:06]} 37. g3 {[%clk 0:00:05]}  Qd5 {[%clk 0:00:19]} 38. gxf4 {[%clk 0:00:05]}  Qxf3+ {[%clk 0:00:19]} 39. Rxf3 {[%clk 0:00:06]}  g4 {[%clk 0:00:20]} 40. hxg4 {[%clk 0:00:06]}  hxg4 {[%clk 0:00:21]} 41. Rg3 {[%clk 0:00:06]}  Rb3 {[%clk 0:00:22]} 42. Kh2 {[%clk 0:00:06]}  Kf6 {[%clk 0:00:21]} 43. Be2 {[%clk 0:00:06]}  Rc3 {[%clk 0:00:19]} 44. Bxg4 {[%clk 0:00:03]}  Rc4 {[%clk 0:00:17]} 45. Be2 {[%clk 0:00:02]}  Rxf4 {[%clk 0:00:17]} 46. Rf3 {[%clk 0:00:01]}  Ke5 {[%clk 0:00:17]} 47. Rxf4 {[%clk 0:00:01]}  Kxf4 {[%clk 0:00:18]} 48. Kg2 {[%clk 0:00:01]}  Ke3 {[%clk 0:00:18]} 49. Bc4 {[%clk 0:00:02]}  f5 {[%clk 0:00:17]} 50. Kf1 {[%clk 0:00:01]}  f4 {[%clk 0:00:17]} 51. Ke1 {[%clk 0:00:02]}  Kd4 {[%clk 0:00:17]} 0-1


[Site "https://www.chess.com"]

[Event "Titled Tuesday Blitz July 6 2021"]
[White "Jarovinsky, Alexey"]
[Black "AleksanderHnydiuk"]
[WhiteFideId "14115131"]
[WhiteElo "2446"]
[BlackElo "2556"]
[Result "0-1"]
[Round "10"]
[TimeControl "180+1"]
[Date "2021.07.06"]
[WhiteClock "0:00:01"]
[BlackClock "0:00:36"]

1. Nc3 {[%clk 0:03:00]}  d5 {[%clk 0:02:55]} 2. e4 {[%clk 0:03:00]}  d4 {[%clk 0:02:54]} 3. Nce2 {[%clk 0:02:59]}  e5 {[%clk 0:02:54]} 4. c3 {[%clk 0:02:58]}  c5 {[%clk 0:02:52]} 5. Ng3 {[%clk 0:02:57]}  Be6 {[%clk 0:02:47]} 6. Bb5+ {[%clk 0:02:46]}  Nd7 {[%clk 0:02:47]} 7. Nf3 {[%clk 0:02:44]}  Bd6 {[%clk 0:02:47]} 8. d3 {[%clk 0:02:42]}  Ne7 {[%clk 0:02:47]} 9. Ng5 {[%clk 0:02:42]}  O-O {[%clk 0:02:32]} 10. Nxe6 {[%clk 0:02:29]}  fxe6 {[%clk 0:02:33]} 11. Qg4 {[%clk 0:02:28]}  Rf6 {[%clk 0:02:29]} 12. Bg5 {[%clk 0:01:58]}  Rg6 {[%clk 0:02:28]} 13. h4 {[%clk 0:01:52]}  h6 {[%clk 0:02:22]} 14. Bxe7 {[%clk 0:01:51]}  Rxg4 {[%clk 0:02:21]} 15. Bxd8 {[%clk 0:01:50]}  Rxd8 {[%clk 0:02:20]} 16. Bc4 {[%clk 0:01:23]}  Kf7 {[%clk 0:02:09]} 17. Nf5 {[%clk 0:01:13]}  Nb6 {[%clk 0:02:08]} 18. Bb3 {[%clk 0:01:06]}  Rxg2 {[%clk 0:02:04]} 19. Ke2 {[%clk 0:01:00]}  c4 {[%clk 0:01:51]} 20. Nxd6+ {[%clk 0:00:40]}  Rxd6 {[%clk 0:01:52]} 21. dxc4 {[%clk 0:00:38]}  Nd7 {[%clk 0:01:42]} 22. cxd4 {[%clk 0:00:23]}  exd4 {[%clk 0:01:37]} 23. Rag1 {[%clk 0:00:22]}  Rxg1 {[%clk 0:01:36]} 24. Rxg1 {[%clk 0:00:23]}  Nc5 {[%clk 0:01:32]} 25. f3 {[%clk 0:00:22]}  Nxb3 {[%clk 0:01:21]} 26. axb3 {[%clk 0:00:21]}  Rb6 {[%clk 0:01:22]} 27. Kd3 {[%clk 0:00:12]}  Rxb3+ {[%clk 0:01:19]} 28. Kxd4 {[%clk 0:00:12]}  Rxf3 {[%clk 0:01:18]} 29. b4 {[%clk 0:00:09]}  a6 {[%clk 0:01:10]} 30. Kc5 {[%clk 0:00:08]}  Rc3 {[%clk 0:01:04]} 31. Rd1 {[%clk 0:00:08]}  b5 {[%clk 0:01:02]} 32. Rb1 {[%clk 0:00:04]}  bxc4 {[%clk 0:00:57]} 33. Kb6 {[%clk 0:00:04]}  Rb3 {[%clk 0:00:57]} 34. Rf1+ {[%clk 0:00:01]}  Ke7 {[%clk 0:00:57]} 35. Kc5 {[%clk 0:00:02]}  c3 {[%clk 0:00:57]} 36. Kc4 {[%clk 0:00:02]}  Ra3 {[%clk 0:00:54]} 37. Rg1 {[%clk 0:00:03]}  Kf6 {[%clk 0:00:51]} 38. h5 {[%clk 0:00:03]}  g5 {[%clk 0:00:47]} 39. hxg6 {[%clk 0:00:02]}  Kg7 {[%clk 0:00:47]} 40. Kd3 {[%clk 0:00:02]}  h5 {[%clk 0:00:47]} 41. Kc2 {[%clk 0:00:01]}  e5 {[%clk 0:00:41]} 42. Rg5 {[%clk 0:00:01]}  h4 {[%clk 0:00:39]} 43. Rg4 {[%clk 0:00:01]}  h3 {[%clk 0:00:37]} 44. Rh4 {[%clk 0:00:01]}  h2 {[%clk 0:00:38]} 45. Kd3 {[%clk 0:00:01]}  c2+ {[%clk 0:00:36]} 46. Kxc2 {[%clk 0:00:01]}  Ra1 {[%clk 0:00:36]} 0-1


[Site "https://www.chess.com"]

[Event "Titled Tuesday Blitz July 6 2021"]
[White "Juhasz, Agoston"]
[Black "Kubatko, Ivan"]
[WhiteFideId "778346"]
[BlackFideId "24111473"]
[WhiteElo "2211"]
[BlackElo "2285"]
[Result "0-1"]
[Round "10"]
[TimeControl "180+1"]
[Date "2021.07.06"]
[WhiteClock "0:00:02"]
[BlackClock "0:00:09"]

1. b3 {[%clk 0:03:00]}  d5 {[%clk 0:02:56]} 2. Bb2 {[%clk 0:02:57]}  c5 {[%clk 0:02:56]} 3. Nf3 {[%clk 0:02:57]}  Nc6 {[%clk 0:02:56]} 4. e3 {[%clk 0:02:57]}  a6 {[%clk 0:02:56]} 5. Be2 {[%clk 0:02:55]}  d4 {[%clk 0:02:56]} 6. O-O {[%clk 0:02:53]}  e5 {[%clk 0:02:56]} 7. exd4 {[%clk 0:02:51]}  cxd4 {[%clk 0:02:56]} 8. Re1 {[%clk 0:02:51]}  Nf6 {[%clk 0:02:56]} 9. Na3 {[%clk 0:02:40]}  b5 {[%clk 0:02:42]} 10. Bd3 {[%clk 0:02:19]}  Bd6 {[%clk 0:02:35]} 11. c3 {[%clk 0:02:04]}  O-O {[%clk 0:02:20]} 12. Nc2 {[%clk 0:01:47]}  Re8 {[%clk 0:01:36]} 13. Ng5 {[%clk 0:01:23]}  Bg4 {[%clk 0:01:20]} 14. f3 {[%clk 0:01:21]}  Bh5 {[%clk 0:01:20]} 15. cxd4 {[%clk 0:01:12]}  exd4 {[%clk 0:01:05]} 16. Rxe8+ {[%clk 0:01:13]}  Qxe8 {[%clk 0:01:05]} 17. Ne4 {[%clk 0:00:55]}  Nxe4 {[%clk 0:00:51]} 18. Bxe4 {[%clk 0:00:56]}  Qe5 {[%clk 0:00:51]} 19. g3 {[%clk 0:00:35]}  Rc8 {[%clk 0:00:50]} 20. Rc1 {[%clk 0:00:31]}  f5 {[%clk 0:00:26]} 21. Bxc6 {[%clk 0:00:22]}  Rxc6 {[%clk 0:00:27]} 22. Nxd4 {[%clk 0:00:20]}  Rxc1 {[%clk 0:00:26]} 23. Qxc1 {[%clk 0:00:20]}  Bc5 {[%clk 0:00:27]} 24. Qc3 {[%clk 0:00:16]}  Bxf3 {[%clk 0:00:19]} 25. Qxf3 {[%clk 0:00:12]}  Bxd4+ {[%clk 0:00:19]} 26. Bxd4 {[%clk 0:00:11]}  Qxd4+ {[%clk 0:00:20]} 27. Qf2 {[%clk 0:00:11]}  Qe4 {[%clk 0:00:18]} 28. Qa7 {[%clk 0:00:09]}  Qe1+ {[%clk 0:00:16]} 29. Kg2 {[%clk 0:00:09]}  Qxd2+ {[%clk 0:00:16]} 30. Kh3 {[%clk 0:00:09]}  Qh6+ {[%clk 0:00:13]} 31. Kg2 {[%clk 0:00:08]}  Qc6+ {[%clk 0:00:13]} 32. Kh3 {[%clk 0:00:07]}  h6 {[%clk 0:00:13]} 33. Qe7 {[%clk 0:00:07]}  Qg6 {[%clk 0:00:08]} 34. Kg2 {[%clk 0:00:04]}  Kh7 {[%clk 0:00:08]} 35. Qe5 {[%clk 0:00:04]}  Qg4 {[%clk 0:00:08]} 36. Qe6 {[%clk 0:00:03]}  Qe4+ {[%clk 0:00:07]} 37. Qxe4 {[%clk 0:00:03]}  fxe4 {[%clk 0:00:08]} 38. Kf2 {[%clk 0:00:03]}  Kg6 {[%clk 0:00:08]} 39. Ke3 {[%clk 0:00:04]}  Kf5 {[%clk 0:00:09]} 40. h3 {[%clk 0:00:04]}  h5 {[%clk 0:00:08]} 41. b4 {[%clk 0:00:02]}  g5 {[%clk 0:00:07]} 42. a3 {[%clk 0:00:03]}  Ke5 {[%clk 0:00:07]} 43. Ke2 {[%clk 0:00:03]}  Kd4 {[%clk 0:00:07]} 44. Kd2 {[%clk 0:00:03]}  e3+ {[%clk 0:00:08]} 45. Ke2 {[%clk 0:00:04]}  Ke4 {[%clk 0:00:08]} 46. h4 {[%clk 0:00:03]}  gxh4 {[%clk 0:00:08]} 47. gxh4 {[%clk 0:00:04]}  Kf4 {[%clk 0:00:08]} 48. Ke1 {[%clk 0:00:03]}  Kf3 {[%clk 0:00:09]} 49. Kf1 {[%clk 0:00:03]}  e2+ {[%clk 0:00:07]} 50. Ke1 {[%clk 0:00:03]}  Ke3 {[%clk 0:00:07]} 51. a4 {[%clk 0:00:02]}  bxa4 {[%clk 0:00:08]} 52. b5 {[%clk 0:00:03]}  a3 {[%clk 0:00:08]} 53. bxa6 {[%clk 0:00:02]}  a2 {[%clk 0:00:09]} 0-1


[Site "https://www.chess.com"]

[Event "Titled Tuesday Blitz July 6 2021"]
[White "Kobo, Ori"]
[Black "Lagunow, Raphael"]
[WhiteFideId "2812320"]
[BlackFideId "24652644"]
[WhiteElo "2431"]
[BlackElo "2400"]
[Result "1-0"]
[Round "10"]
[TimeControl "180+1"]
[Date "2021.07.06"]
[WhiteClock "0:00:09"]
[BlackClock "0:00:05"]

1. e4 {[%clk 0:03:00]}  c5 {[%clk 0:02:58]} 2. Nf3 {[%clk 0:03:00]}  Nc6 {[%clk 0:02:59]} 3. Bb5 {[%clk 0:03:00]}  Na5 {[%clk 0:02:59]} 4. O-O {[%clk 0:02:58]}  a6 {[%clk 0:02:59]} 5. Be2 {[%clk 0:02:58]}  b5 {[%clk 0:03:00]} 6. a4 {[%clk 0:02:56]}  b4 {[%clk 0:03:00]} 7. d4 {[%clk 0:02:55]}  cxd4 {[%clk 0:02:59]} 8. Qxd4 {[%clk 0:02:48]}  e6 {[%clk 0:03:00]} 9. Bg5 {[%clk 0:02:28]}  f6 {[%clk 0:02:55]} 10. Be3 {[%clk 0:02:22]}  Bb7 {[%clk 0:02:54]} 11. Nbd2 {[%clk 0:02:18]}  Rc8 {[%clk 0:02:51]} 12. Qa7 {[%clk 0:01:54]}  Ra8 {[%clk 0:02:42]} 13. Qd4 {[%clk 0:01:54]}  Rc8 {[%clk 0:02:42]} 14. Qa7 {[%clk 0:01:43]}  Ra8 {[%clk 0:02:41]} 15. Qb6 {[%clk 0:01:43]}  Qxb6 {[%clk 0:02:34]} 16. Bxb6 {[%clk 0:01:44]}  Nc6 {[%clk 0:02:34]} 17. Nc4 {[%clk 0:01:43]}  d5 {[%clk 0:01:19]} 18. exd5 {[%clk 0:01:42]}  exd5 {[%clk 0:01:20]} 19. Ne3 {[%clk 0:01:40]}  Nge7 {[%clk 0:01:19]} 20. Rfd1 {[%clk 0:01:28]}  Nc8 {[%clk 0:00:58]} 21. Nxd5 {[%clk 0:01:25]}  Nxb6 {[%clk 0:00:56]} 22. Nxb6 {[%clk 0:01:23]}  Rd8 {[%clk 0:00:57]} 23. Re1 {[%clk 0:01:00]}  Kf7 {[%clk 0:00:54]} 24. Bc4+ {[%clk 0:01:00]}  Kg6 {[%clk 0:00:52]} 25. Nd5 {[%clk 0:00:53]}  Bc5 {[%clk 0:00:45]} 26. Nf4+ {[%clk 0:00:51]}  Kh6 {[%clk 0:00:45]} 27. Ne6 {[%clk 0:00:49]}  Bb6 {[%clk 0:00:36]} 28. Nxd8 {[%clk 0:00:48]}  Rxd8 {[%clk 0:00:36]} 29. Rad1 {[%clk 0:00:47]}  Rc8 {[%clk 0:00:29]} 30. Be6 {[%clk 0:00:45]}  Rf8 {[%clk 0:00:27]} 31. Rd7 {[%clk 0:00:34]}  Na5 {[%clk 0:00:23]} 32. Bd5 {[%clk 0:00:28]}  Bxd5 {[%clk 0:00:22]} 33. Rxd5 {[%clk 0:00:29]}  Nc4 {[%clk 0:00:22]} 34. b3 {[%clk 0:00:25]}  Na3 {[%clk 0:00:22]} 35. Re6 {[%clk 0:00:21]}  Bc7 {[%clk 0:00:17]} 36. Rc6 {[%clk 0:00:21]}  Bf4 {[%clk 0:00:17]} 37. g3 {[%clk 0:00:21]}  Bc1 {[%clk 0:00:17]} 38. Nd4 {[%clk 0:00:18]}  g6 {[%clk 0:00:16]} 39. Rdd6 {[%clk 0:00:15]}  f5 {[%clk 0:00:15]} 40. Rd7 {[%clk 0:00:14]}  Bb2 {[%clk 0:00:09]} 41. Rcc7 {[%clk 0:00:11]}  Bxd4 {[%clk 0:00:09]} 42. Rxd4 {[%clk 0:00:12]}  Re8 {[%clk 0:00:07]} 43. Rdd7 {[%clk 0:00:08]}  Kg5 {[%clk 0:00:07]} 44. Kg2 {[%clk 0:00:08]}  h6 {[%clk 0:00:05]} 45. h4+ {[%clk 0:00:07]}  Kh5 {[%clk 0:00:05]} 46. Rd2 {[%clk 0:00:05]}  Nb1 {[%clk 0:00:05]} 47. Rd4 {[%clk 0:00:04]}  Nc3 {[%clk 0:00:05]} 48. Rxb4 {[%clk 0:00:05]}  Nd5 {[%clk 0:00:05]} 49. Rbc4 {[%clk 0:00:05]}  Nxc7 {[%clk 0:00:05]} 50. Rxc7 {[%clk 0:00:06]}  Re2 {[%clk 0:00:05]} 51. Rc6 {[%clk 0:00:06]}  a5 {[%clk 0:00:05]} 52. Rc5 {[%clk 0:00:06]}  Rd2 {[%clk 0:00:05]} 53. c3 {[%clk 0:00:06]}  Rc2 {[%clk 0:00:05]} 54. Rxa5 {[%clk 0:00:06]}  Rxc3 {[%clk 0:00:06]} 55. Rb5 {[%clk 0:00:07]}  Rc2 {[%clk 0:00:06]} 56. a5 {[%clk 0:00:07]}  Ra2 {[%clk 0:00:07]} 57. b4 {[%clk 0:00:08]}  Ra4 {[%clk 0:00:07]} 58. Rb6 {[%clk 0:00:08]}  f4 {[%clk 0:00:06]} 59. b5 {[%clk 0:00:06]}  fxg3 {[%clk 0:00:06]} 60. fxg3 {[%clk 0:00:06]}  Ra2+ {[%clk 0:00:07]} 61. Kf3 {[%clk 0:00:07]}  Ra3+ {[%clk 0:00:07]} 62. Kf4 {[%clk 0:00:07]}  Ra4+ {[%clk 0:00:07]} 63. Ke5 {[%clk 0:00:07]}  Rg4 {[%clk 0:00:07]} 64. a6 {[%clk 0:00:07]}  Rxg3 {[%clk 0:00:07]} 65. a7 {[%clk 0:00:08]}  Re3+ {[%clk 0:00:05]} 66. Kd4 {[%clk 0:00:08]}  Ra3 {[%clk 0:00:03]} 67. Ra6 {[%clk 0:00:08]}  Rxa6 {[%clk 0:00:04]} 68. bxa6 {[%clk 0:00:08]}  Kxh4 {[%clk 0:00:05]} 69. a8=Q {[%clk 0:00:09]} 1-0


[Site "https://www.chess.com"]

[Event "Titled Tuesday Blitz July 6 2021"]
[White "Kotepalli, Sai Nirupama"]
[Black "Pert, Richard G"]
[WhiteFideId "5039444"]
[BlackFideId "404748"]
[WhiteElo "2439"]
[BlackElo "2441"]
[Result "1-0"]
[Round "10"]
[TimeControl "180+1"]
[Date "2021.07.06"]
[WhiteClock "0:01:04"]
[BlackClock "0:01:29"]

1. e4 {[%clk 0:03:00]}  d5 {[%clk 0:02:59]} 2. exd5 {[%clk 0:02:59]}  Nf6 {[%clk 0:02:59]} 3. d4 {[%clk 0:02:58]}  Bg4 {[%clk 0:02:57]} 4. Be2 {[%clk 0:02:57]}  Bxe2 {[%clk 0:02:55]} 5. Qxe2 {[%clk 0:02:57]}  Qxd5 {[%clk 0:02:55]} 6. Nf3 {[%clk 0:02:57]}  Nc6 {[%clk 0:02:55]} 7. Be3 {[%clk 0:02:56]}  e6 {[%clk 0:02:49]} 8. O-O {[%clk 0:02:54]}  O-O-O {[%clk 0:02:45]} 9. c4 {[%clk 0:02:52]}  Qf5 {[%clk 0:02:44]} 10. Nc3 {[%clk 0:02:50]}  Rg8 {[%clk 0:02:40]} 11. Rfd1 {[%clk 0:02:47]}  g5 {[%clk 0:02:36]} 12. Ne5 {[%clk 0:02:07]}  Nxe5 {[%clk 0:02:22]} 13. dxe5 {[%clk 0:02:08]}  Rxd1+ {[%clk 0:02:19]} 14. Rxd1 {[%clk 0:02:09]}  Qxe5 {[%clk 0:02:19]} 15. Qd3 {[%clk 0:01:47]}  Bd6 {[%clk 0:02:14]} 16. g3 {[%clk 0:01:43]}  Rd8 {[%clk 0:02:11]} 17. Bd4 {[%clk 0:01:41]}  Qa5 {[%clk 0:01:54]} 18. Bxf6 {[%clk 0:01:39]}  Rd7 {[%clk 0:01:48]} 19. Qxh7 {[%clk 0:01:20]}  b5 {[%clk 0:01:41]} 20. Qg8+ {[%clk 0:01:16]}  Kb7 {[%clk 0:01:41]} 21. Qe8 {[%clk 0:01:15]}  b4 {[%clk 0:01:30]} 22. Qxd7 {[%clk 0:01:13]}  bxc3 {[%clk 0:01:30]} 23. Bxc3 {[%clk 0:01:12]}  Qc5 {[%clk 0:01:30]} 24. Qb5+ {[%clk 0:01:07]}  Qxb5 {[%clk 0:01:29]} 25. cxb5 {[%clk 0:01:08]}  Kb6 {[%clk 0:01:30]} 26. a4 {[%clk 0:01:07]}  Kc5 {[%clk 0:01:30]} 27. b3 {[%clk 0:01:06]}  f5 {[%clk 0:01:30]} 28. Bd4+ {[%clk 0:01:04]}  Kb4 {[%clk 0:01:29]} 29. Bxa7 {[%clk 0:01:05]}  Kxb3 {[%clk 0:01:30]} 30. a5 {[%clk 0:01:04]}  Kb4 {[%clk 0:01:30]} 31. Rxd6 {[%clk 0:01:04]}  Kxb5 {[%clk 0:01:27]} 32. Rxe6 {[%clk 0:01:03]}  Kxa5 {[%clk 0:01:28]} 33. Re5+ {[%clk 0:01:02]}  Ka6 {[%clk 0:01:28]} 34. Rxf5 {[%clk 0:01:03]}  Kxa7 {[%clk 0:01:28]} 35. Rxg5 {[%clk 0:01:04]}  Kb6 {[%clk 0:01:29]} 36. Re5 {[%clk 0:01:04]} 1-0


[Site "https://www.chess.com"]

[Event "Titled Tuesday Blitz July 6 2021"]
[White "Lee, Qing Aun"]
[Black "Costachi, Mihnea"]
[WhiteFideId "5804167"]
[BlackFideId "1217518"]
[WhiteElo "2023"]
[BlackElo "2482"]
[Result "1-0"]
[Round "10"]
[TimeControl "180+1"]
[Date "2021.07.06"]
[WhiteClock "0:01:43"]
[BlackClock "0:02:06"]

1. e4 {[%clk 0:03:00]}  e5 {[%clk 0:02:59]} 2. Nf3 {[%clk 0:02:57]}  Nc6 {[%clk 0:02:59]} 3. Bc4 {[%clk 0:02:58]}  Bc5 {[%clk 0:02:58]} 4. O-O {[%clk 0:02:57]}  d6 {[%clk 0:02:58]} 5. h3 {[%clk 0:02:56]}  Nf6 {[%clk 0:02:58]} 6. Re1 {[%clk 0:02:54]}  h6 {[%clk 0:02:57]} 7. c3 {[%clk 0:02:53]}  a6 {[%clk 0:02:54]} 8. d4 {[%clk 0:02:52]}  Ba7 {[%clk 0:02:54]} 9. dxe5 {[%clk 0:02:43]}  Nxe5 {[%clk 0:02:51]} 10. Nxe5 {[%clk 0:02:41]}  dxe5 {[%clk 0:02:52]} 11. Nd2 {[%clk 0:02:40]}  O-O {[%clk 0:02:50]} 12. Qe2 {[%clk 0:02:39]}  Qe7 {[%clk 0:02:48]} 13. Nf1 {[%clk 0:02:38]}  Be6 {[%clk 0:02:48]} 14. Be3 {[%clk 0:02:37]}  Bxc4 {[%clk 0:02:44]} 15. Qxc4 {[%clk 0:02:35]}  Bxe3 {[%clk 0:02:43]} 16. Nxe3 {[%clk 0:02:30]}  c6 {[%clk 0:02:43]} 17. Nf5 {[%clk 0:02:29]}  Qe6 {[%clk 0:02:42]} 18. Qxe6 {[%clk 0:02:15]}  fxe6 {[%clk 0:02:43]} 19. Nd6 {[%clk 0:02:11]}  Rab8 {[%clk 0:02:38]} 20. Nc4 {[%clk 0:02:10]}  Nd7 {[%clk 0:02:34]} 21. Rad1 {[%clk 0:02:09]}  Rf7 {[%clk 0:02:27]} 22. Rd6 {[%clk 0:02:04]}  Re7 {[%clk 0:02:24]} 23. Red1 {[%clk 0:01:59]}  b5 {[%clk 0:02:24]} 24. Na5 {[%clk 0:01:53]}  Nc5 {[%clk 0:02:04]} 25. Nxc6 {[%clk 0:01:52]}  Rbb7 {[%clk 0:02:04]} 26. Nxe7+ {[%clk 0:01:47]}  Rxe7 {[%clk 0:02:05]} 27. f3 {[%clk 0:01:48]}  Na4 {[%clk 0:02:05]} 28. R1d2 {[%clk 0:01:47]}  Nc5 {[%clk 0:02:05]} 29. Rc6 {[%clk 0:01:45]}  Nxe4 {[%clk 0:02:05]} 30. fxe4 {[%clk 0:01:45]}  Kh7 {[%clk 0:02:06]} 31. Rd3 {[%clk 0:01:44]}  Rd7 {[%clk 0:02:06]} 32. Rxd7 {[%clk 0:01:43]} 1-0


[Site "https://www.chess.com"]